Workbook

Sheet MISSION DEDUCTIONS CROSSWALK
A1: NOTE | B1: MNEMONIC | C1: DESCRIPTION | D1: DED PAY CODE W# | E1: Plans in WORKTERRA | F1: Class2 | G1: Coverage Tier | H1: Standard or Variable rate | I1: Smoker | J1: Notes | K1: Payroll Audit Excel .xls file
A2: Post Tax | B2: LTD | C2: LONG TERM DISABILITY | D2: 130 | E2: LTD 60% to $10k Voluntary LTD 60% | F2: Csuite Full Time Employees Part Time Employees | G2: Employee Only | H2: Variable
A3: Post Tax | B3: SUPPLIFE | C3: SUPP EMPLOYEE LIFE | D3: 131 | E3: Supplemental Employee Life Supplemental Employee Life (80+) | F3: Csuite Full Time Employees Part Time Employees | G3: Employee Only | H3: Variable
A4: Post Tax | B4: CHLDLIFE | C4: SUPP CHILD LIFE | D4: 132 | E4: Child Life | F4: Csuite Full Time Employees Part Time Employees | G4: Child Only | H4: Variable
A5: Post Tax | B5: SPSLIFE | C5: SUPP SPOUSE LIFE | D5: 133 | E5: Spouse Life | F5: Csuite Full Time Employees Part Time Employees | G5: Spouse Only | H5: Variable
A6: Post Tax | B6: STD | C6: SHORT TERM DISABILITY | D6: 135 | E6: Voluntary STD 60% | F6: Full Time Employees Part Time Employees | G6: Employee Only | H6: Variable
A7: Post Tax | B7: METLAW | C7: METLAW LEGAL | D7: 235 | E7: Hyatt Legal Plan | F7: Csuite Full Time Employees Part Time Employees | G7: Employee Only | H7: Variable | J7: Employee Only
A8: Pre Tax | B8: DCF | C8: DEPENDENT CARE FLEX | D8: 005.1 | E8: 2017 Dependent Care Spending Account | F8: Csuite Full Time Employees Part Time Employees | G8: Employee Only | H8: Variable | J8: Employee Only
A9: Pre Tax | B9: HCF | C9: HEALTH CARE FLEX | D9: 005.2 | E9: 2017 Healthcare Spending Account | F9: Csuite Full Time Employees Part Time Employees | G9: Employee Only | H9: Variable | J9: Employee Only
A10: Pre Tax | B10: EPOFTEE | C10: EPO FT EMP | D10: 006.1 | E10: EPO Plan EPOPlan | F10: Full Time Employees | G10: Employee Only | H10: Standard
A11: Pre Tax | B11: EPOFTSP | C11: EPO FT E+SPOUSE | D11: 006.2 | E11: EPO Plan EPOPlan | F11: Full Time Employees | G11: Employee + Spouse | H11: Standard
A12: Pre Tax | B12: EPOFTCH | C12: EPO FT E+CHILD(S) | D12: 006.3 | E12: EPO Plan EPOPlan | F12: Full Time Employees | G12: Employee + Child(ren) | H12: Standard
A13: Pre Tax | B13: EPOFTFM | C13: EPO FT E+FAMILY | D13: 006.4 | E13: EPO Plan EPOPlan | F13: Full Time Employees | G13: Employee + Family | H13: Standard
A14: Pre Tax | B14: EPOPTEE | C14: EPO PT EMP | D14: 006.13 | E14: EPO Plan EPOPlan | F14: Part Time Employees | G14: Employee Only | H14: Standard
A15: Pre Tax | B15: EPOPTSP | C15: EPO PT E+SPOUSE | D15: 006.14 | E15: EPO Plan EPOPlan | F15: Part Time Employees | G15: Employee + Spouse | H15: Standard
A16: Pre Tax | B16: EPOPTCH | C16: EPO PT E+CHILD(S) | D16: 006.15 | E16: EPO Plan EPOPlan | F16: Part Time Employees | G16: Employee + Child(ren) | H16: Standard
A17: Pre Tax | B17: EPOPTFM | C17: EPO PT E+FAMILY | D17: 006.16 | E17: EPO Plan EPOPlan | F17: Part Time Employees | G17: Employee + Family | H17: Standard
A18: Pre Tax | B18: EPOSFTEE | C18: EPOS FT EMP | D18: 006.5 | E18: EPO Plan EPOPlan | F18: Full Time Employees | G18: Employee Only | H18: Standard | I18: Smoker
A19: Pre Tax | B19: EPOSFTSP | C19: EPOS FT E+SPOUSE | D19: 006.6 | E19: EPO Plan EPOPlan | F19: Full Time Employees | G19: Employee + Spouse | H19: Standard | I19: Smoker
A20: Pre Tax | B20: EPOSFTCH | C20: EPOS FT E+CHILD(S) | D20: 006.7 | E20: EPO Plan EPOPlan | F20: Full Time Employees | G20: Employee + Child(ren) | H20: Standard | I20: Smoker
A21: Pre Tax | B21: EPOSFTFM | C21: EPOS FT E+FAMILY | D21: 006.8 | E21: EPO Plan EPOPlan | F21: Full Time Employees | G21: Employee + Family | H21: Standard | I21: Smoker
A22: Pre Tax | B22: EPOSPTEE | C22: EPOS PT EMP | D22: 006.17 | E22: EPO Plan EPOPlan | F22: Part Time Employees | G22: Employee Only | H22: Standard | I22: Smoker
A23: Pre Tax | B23: EPOSPTSP | C23: EPOS PT E+SPOUSE | D23: 006.18 | E23: EPO Plan EPOPlan | F23: Part Time Employees | G23: Employee + Spouse | H23: Standard | I23: Smoker
A24: Pre Tax | B24: EPOSPTCH | C24: EPOS PT E+CHILD(S) | D24: 006.19 | E24: EPO Plan EPOPlan | F24: Part Time Employees | G24: Employee + Child(ren) | H24: Standard | I24: Smoker
A25: Pre Tax | B25: EPOSPTFM | C25: EPOS PT E+FAMILY | D25: 006.20 | E25: EPO Plan EPOPlan | F25: Part Time Employees | G25: Employee + Family | H25: Standard | I25: Smoker
A26: Pre Tax | B26: VPFPPDEE | C26: VALUE PLAN EMP ONLY | D26: 006.9 | E26: Value Plan ValuePlan | F26: Full Time Employees Part Time Employees Per Diems | G26: Employee Only | H26: Standard
A27: Pre Tax | B27: VPFPPDSP | C27: VALUE PLAN EMP&SPOUSE | D27: 006.10 | E27: Value Plan ValuePlan | F27: Full Time Employees Part Time Employees Per Diems | G27: Employee + Spouse | H27: Standard
A28: Pre Tax | B28: VPFPPDCH | C28: VALUE PLAN EMP&CHILD | D28: 006.11 | E28: Value Plan ValuePlan | F28: Full Time Employees Part Time Employees Per Diems | G28: Employee + Child(ren) | H28: Standard
A29: Pre Tax | B29: VPFPPDFM | C29: VALUE PLAN EMP&FAMILY | D29: 006.12 | E29: Value Plan ValuePlan | F29: Full Time Employees Part Time Employees Per Diems | G29: Employee + Family | H29: Standard
A30: Pre Tax | B30: DPPOHEE | C30: DNTL PPO HIGH EMP | D30: 020.1 | E30: Delta Dental PPO High Plan | F30: Full Time Employees Part Time Employees | G30: Employee Only | H30: Standard
A31: Pre Tax | B31: DPPOHES | C31: DNTL PPO HIGH E+SPOUSE | D31: 020.2 | E31: Delta Dental PPO High Plan | F31: Full Time Employees Part Time Employees | G31: Employee + Spouse | H31: Standard
A32: Pre Tax | B32: DPPOHEC | C32: DNTL PPO HIGH E+CHILD(S) | D32: 020.3 | E32: Delta Dental PPO High Plan | F32: Full Time Employees Part Time Employees | G32: Employee + Child(ren) | H32: Standard
A33: Pre Tax | B33: DPPOHEF | C33: DNTL PPO HIGH E+FAMILY | D33: 020.4 | E33: Delta Dental PPO High Plan | F33: Full Time Employees Part Time Employees | G33: Employee + Family | H33: Standard
A34: Pre Tax | B34: DPPOLEE | C34: DNTL PPO LOW EMP | D34: 020.5 | E34: Delta Dental PPO Low Plan | F34: Full Time Employees Part Time Employees | G34: Employee Only | H34: Standard
A35: Pre Tax | B35: DPPOLES | C35: DNTL PPO LOW E+SPOUSE | D35: 020.6 | E35: Delta Dental PPO Low Plan | F35: Full Time Employees Part Time Employees | G35: Employee + Spouse | H35: Standard
A36: Pre Tax | B36: DPPOLEC | C36: DNTL PPO LOW E+CHILD(S) | D36: 020.7 | E36: Delta Dental PPO Low Plan | F36: Full Time Employees Part Time Employees | G36: Employee + Child(ren) | H36: Standard
A37: Pre Tax | B37: DPPOLEF | C37: DNTL PPO LOW E+FAMILY | D37: 020.8 | E37: Delta Dental PPO Low Plan | F37: Full Time Employees Part Time Employees | G37: Employee + Family | H37: Standard
A38: Pre Tax | B38: VSPBEE | C38: VSP B EMP | D38: 060.1 | E38: Vision Plan B - Basic Plan | F38: Full Time Employees Part Time Employees | G38: Employee Only | H38: Standard
A39: Pre Tax | B39: VSPBES | C39: VSP B E+SPOUSE | D39: 060.2 | E39: Vision Plan B - Basic Plan | F39: Full Time Employees Part Time Employees | G39: Employee + Spouse | H39: Standard
A40: Pre Tax | B40: VSPBEC | C40: VSP B E+CHILD(S) | D40: 060.3 | E40: Vision Plan B - Basic Plan | F40: Full Time Employees Part Time Employees | G40: Employee + Child(ren) | H40: Standard
A41: Pre Tax | B41: VSPBEF | C41: VSP B E+FAMILY | D41: 060.4 | E41: Vision Plan B - Basic Plan | F41: Full Time Employees Part Time Employees | G41: Employee + Family | H41: Standard
A42: Pre Tax | B42: VSPCEE | C42: VSP C EMP | D42: 060.5 | E42: Vision Plan C- Premium Plan | F42: Full Time Employees Part Time Employees | G42: Employee Only | H42: Standard
A43: Pre Tax | B43: VSPCES | C43: VSP C E+SPOUSE | D43: 060.6 | E43: Vision Plan C- Premium Plan | F43: Full Time Employees Part Time Employees | G43: Employee + Spouse | H43: Standard
A44: Pre Tax | B44: VSPCEC | C44: VSP C E+CHILD(S) | D44: 060.7 | E44: Vision Plan C- Premium Plan | F44: Full Time Employees Part Time Employees | G44: Employee + Child(ren) | H44: Standard
A45: Pre Tax | B45: VSPCEF | C45: VSP C E+FAMILY | D45: 060.8 | E45: Vision Plan C- Premium Plan | F45: Full Time Employees Part Time Employees | G45: Employee + Family | H45: Standard
A46: Pre Tax | B46: EPOCEE | C46: EPOCEE | D46: 006.21 | E46: EPO Plan EPOPlan | F46: Csuite | G46: Employee Only | H46: Standard
A47: Pre Tax | B47: EPOCE+SP | C47: EPOCE+SP | D47: 006.22 | E47: EPO Plan EPOPlan | F47: Csuite | G47: Employee + Spouse | H47: Standard
A48: Pre Tax | B48: EPOCE+CH | C48: EPOCE+CH | D48: 006.23 | E48: EPO Plan EPOPlan | F48: Csuite | G48: Employee + Child(ren) | H48: Standard
A49: Pre Tax | B49: EPOCE+FM | C49: EPOCE+FM | D49: 006.24 | E49: EPO Plan EPOPlan | F49: Csuite | G49: Employee + Family | H49: Standard
A50: Pre Tax | B50: EPOCVEE | C50: EPOCVEE | D50: 006.29 | E50: Value Plan ValuePlan | F50: Csuite | G50: Employee Only | H50: Standard
A51: Pre Tax | B51: EPOCVESP | C51: EPOCVE+SP | D51: 006.30 | E51: Value Plan ValuePlan | F51: Csuite | G51: Employee + Spouse | H51: Standard
A52: Pre Tax | B52: EPOCVECH | C52: EPOCVE+CH | D52: 006.31 | E52: Value Plan ValuePlan | F52: Csuite | G52: Employee + Child(ren) | H52: Standard
A53: Pre Tax | B53: EPOCVEFM | C53: EPOCVE+FM | D53: 006.32 | E53: Value Plan ValuePlan | F53: Csuite | G53: Employee + Family | H53: Standard
A54: Pre Tax | B54: DPPOHCEE | C54: DPPOHCEE | D54: 020.9 | E54: Delta Dental PPO High Plan | F54: Csuite | G54: Employee Only | H54: Standard
A55: Pre Tax | B55: DPPOHCES | C55: DPPOHCE+SP | D55: 020.10 | E55: Delta Dental PPO High Plan | F55: Csuite | G55: Employee + Spouse | H55: Standard
A56: Pre Tax | B56: DPPOHCEC | C56: DPPOHCE+CH | D56: 020.11 | E56: Delta Dental PPO High Plan | F56: Csuite | G56: Employee + Child(ren) | H56: Standard
A57: Pre Tax | B57: DPPOHCEF | C57: DPPOHCE+FM | D57: 020.12 | E57: Delta Dental PPO High Plan | F57: Csuite | G57: Employee + Family | H57: Standard
A58: Pre Tax | B58: DPPOLCEE | C58: DPPOLCEE | D58: 020.13 | E58: Delta Dental PPO Low Plan | F58: Csuite | G58: Employee Only | H58: Standard
A59: Pre Tax | B59: DPPOLCES | C59: DPPOLCE+SP | D59: 020.14 | E59: Delta Dental PPO Low Plan | F59: Csuite | G59: Employee + Spouse | H59: Standard
A60: Pre Tax | B60: DPPOLCEC | C60: DPPOLCE+CH | D60: 020.15 | E60: Delta Dental PPO Low Plan | F60: Csuite | G60: Employee + Child(ren) | H60: Standard
A61: Pre Tax | B61: DPPOLCEF | C61: DPPOLCE+FM | D61: 020.16 | E61: Delta Dental PPO Low Plan | F61: Csuite | G61: Employee + Family | H61: Standard
A62: Pre Tax | B62: VSPBCEE | C62: VSPBCEE | D62: 020.17 | E62: Vision Plan B - Basic Plan | F62: Csuite | G62: Employee Only | H62: Standard
A63: Pre Tax | B63: VSPBCES | C63: VSPBCE+SP | D63: 020.18 | E63: Vision Plan B - Basic Plan | F63: Csuite | G63: Employee + Spouse | H63: Standard
A64: Pre Tax | B64: VSPBCEC | C64: VSPBCE+CH | D64: 020.19 | E64: Vision Plan B - Basic Plan | F64: Csuite | G64: Employee + Child(ren) | H64: Standard
A65: Pre Tax | B65: VSPBCEF | C65: VSPBCE+FM | D65: 020.20 | E65: Vision Plan B - Basic Plan | F65: Csuite | G65: Employee + Family | H65: Standard
A66: Pre Tax | B66: VSPCCEE | C66: VSPCCEE | D66: 020.21 | E66: Vision Plan C- Premium Plan | F66: Csuite | G66: Employee Only | H66: Standard
A67: Pre Tax | B67: VSPCCES | C67: VSPCCE+SP | D67: 020.22 | E67: Vision Plan C- Premium Plan | F67: Csuite | G67: Employee + Spouse | H67: Standard
A68: Pre Tax | B68: VSPCCEC | C68: VSPCCE+CH | D68: 020.23 | E68: Vision Plan C- Premium Plan | F68: Csuite | G68: Employee + Child(ren) | H68: Standard
A69: Pre Tax | B69: VSPCCEF | C69: VSPCCE+FM | D69: 020.24 | E69: Vision Plan C- Premium Plan | F69: Csuite | G69: Employee + Family | H69: Standard
A70: EARNING CODE | B70: OPTOUT | C70: MEDICAL OPTOUT | D70: 1.155 | E70: Waive Medical Opt Out | F70: Csuite Full Time Employees Part Time Employees | G70: Employee Only | H70: Standard | J70: do not map | K70: Map on this file
A71: Post Tax | B71: EAPER | C71: EAP EMPLOYER | D71: 300 | E71: Employee Assistance Program | F71: Full Time Employees Part Time Employees Csuite | G71: Employee Only | H71: Variable | J71: do not map | K71: Map on this file
A72: Post Tax | B72: BSCLF | C72: BASIC LIFE | D72: 136 | E72: Basic Life 1x Salary Up to $50k Basic Life AD&D 1x Salary -Benefit exceeding $50000 is subject to tax Basic Life AD&D Flat $500000 - Benefit exceeding $50000 is subject to tax Basic Life Flat 50k | F72: Full Time Employees | G72: Employee Only | H72: Variable | J72: do not map | K72: Map on this file
B73: Waive | C73: Medical Waive | D73: n/a | E73: Waive Medical | F73: Csuite Full Time Employees Part Time Employees | G73: Employee Only | H73: Standard | J73: do not use | K73: do not use
A74: Post Tax | B74: S AD&D | C74: SPOUSE AD&D | D74: 134 | E74: plan not built | J74: do not use
A75: Post Tax | B75: TMKUL | C75: TRUSTMARK UNIVERSAL LIFE | D75: 236 | E75: plan not built | J75: do not use
A76: Post Tax | B76: TMKBO | C76: TMK CILL&CANCER | D76: 231 | E76: plan not built | J76: do not use
A77: Post Tax | B77: TMKCA | C77: TMK CANCER | D77: 232 | E77: plan not built | J77: do not use
A78: Post Tax | B78: TMKIDI | C78: TRUSTMARK STD | D78: 233 | E78: plan not built | J78: do not use
A79: Post Tax | B79: TMKACC | C79: TRMK ACCIDENT | D79: 234 | E79: plan not built | J79: do not use
A80: Pre Tax | B80: EPOCSEE | C80: EPOCSEE | D80: 006.25 | E80: plan not built | F80: Csuite | G80: Employee Only | I80: smoker | J80: do not use
A81: Pre Tax | B81: EPOCSESP | C81: EPOCSE+SP | D81: 006.26 | E81: plan not built | F81: Csuite | G81: Employee + Spouse | I81: smoker | J81: do not use
A82: Pre Tax | B82: EPOCSECH | C82: EPOCSE+CH | D82: 006.27 | E82: plan not built | F82: Csuite | G82: Employee + Child(ren) | I82: smoker | J82: do not use
A83: Pre Tax | B83: EPOCSEFM | C83: EPOCSE+FM | D83: 006.28 | E83: plan not built | F83: Csuite | G83: Employee + Family | I83: smoker | J83: do not use

Sheet WT Plans, Class, Tier
A1: EBS Plan Design Names | B1: Class | C1: Coverage Tier
A2: 2017 Dependent Care Spending Account | B2: Csuite | C2: Employee
A3: 2017 Healthcare Spending Account | B3: Full Time Employees | C3: Employee + Child
A4: Basic Life 1x Salary Up to $50k | B4: Part Time Employees | C4: Employee + Children
A5: Basic Life AD&D 1x Salary -Benefit exceeding $50000 is subject to tax | B5: Per Diems | C5: Employee + Spouse
A6: Basic Life AD&D Flat $500000 - Benefit exceeding $50000 is subject to tax | C6: Employee + Spouse + 1 Child
A7: Basic Life Flat 50k | C7: Employee, Spouse + 2+ Children
A8: Child Life
A9: Delta Dental PPO High Plan
A10: Delta Dental PPO Low Plan
A11: EPO Plan
A12: EPOPlan
A13: Hyatt Legal Plan
A14: LTD 60% to $10k
A15: Spouse Life
A16: Supplemental Employee Life
A17: Supplemental Employee Life (80+)
A18: Value Plan
A19: ValuePlan
A20: Vision Plan B - Basic Plan
A21: Vision Plan C- Premium Plan
A22: Voluntary LTD 60%
A23: Voluntary STD 60%
A24: Waive Medical
A25: Waive Medical Opt Out

Sheet Rates (eff 7-1-2017)
A1: MISSION REGIONAL MEDICAL CENTER
A2: Master Rate Sheet 'Effective 7/1/2017 through 12/31/2017 | V2: PRIME DEDUCTION CODES
A4: PLAN NAME | B4: FULL-TIME EMPLOYEES | G4: PART-TIME EMPLOYEES | L4: TOTAL RATES | M4: COBRA RATES
B5: Employee | C5: Employee | D5: Prime | E5: Prime | F5: %ER | G5: Employee | H5: Employee | I5: Prime | J5: Prime | K5: %ER | N5: good | T5: Withholding # - Full Time | U5: MNEMONIC | V5: CHECK CAPTION | W5: XXXXX | X5: Withholding # - Part Time | Y5: MNEMONIC | Z5: CHECK CAPTION
A7: EPO Plan | B7: EMPLOYEE | D7: PRIME | G7: EMPLOYEE | I7: PRIME | R7: Rounding Error Check
B8: per pay period (26) | C8: =E8 -> per month | D8: per pay period (26) | E8: per month | G8: per pay period (26) | H8: =J8 -> per month | I8: per pay period (26) | J8: per month | L8: per month | M8: per month | R8: FT | S8: PT
A9: Employee Only | B9: =C9*12/26 -> 0 | C9: 0 | D9: =E9*12/26 -> 246.7566623 | E9: =+L9-C9 -> 534.639435 | F9: =E9/L9 -> 1 | G9: =H9*12/26 -> 78.43384615 | H9: 169.94 | I9: =J9*12/26 -> 168.3228162 | J9: =L9-H9 -> 364.699435 | K9: =J9/L9 -> 0.682140918 | L9: =[1]Harlingen!N10 -> 534.639435 | M9: =L9*1.02 -> 545.3322237 | R9: =IF(ROUND($C9,2)+ROUND($E9,2)=ROUND($L9,2),"-","ROUNDING ERROR!") -> - | S9: =IF(ROUND($H9,2)+ROUND($J9,2)=ROUND($L9,2),"-","ROUNDING ERROR!") -> - | T9: 006.1 | U9: EPOFTEE | V9: EPO FT EMP | X9: 006.13 | Y9: EPOPTEE | Z9: EPO PT EMP
A10: Employee + Spouse | B10: =C10*12/26 -> 52.29230769 | C10: 113.3 | D10: =E10*12/26 -> 441.2361162 | E10: =+L10-C10 -> 956.011585 | F10: =E10/L10 -> 0.8940439797 | G10: =H10*12/26 -> 156.8815385 | H10: 339.91 | I10: =J10*12/26 -> 336.6468854 | J10: =L10-H10 -> 729.401585 | K10: =J10/L10 -> 0.6821225873 | L10: =[1]Harlingen!N11 -> 1069.311585 | M10: =L10*1.02 -> 1090.697817 | R10: =IF(ROUND($C10,2)+ROUND($E10,2)=ROUND($L10,2),"-","ROUNDING ERROR!") -> - | S10: =IF(ROUND($H10,2)+ROUND($J10,2)=ROUND($L10,2),"-","ROUNDING ERROR!") -> - | T10: 006.2 | U10: EPOFTSP | V10: EPO FT E+SPOUSE | X10: 006.14 | Y10: EPOPTSP | Z10: EPO PT E+SPOUSE
A11: Employee + Child(ren) | B11: =C11*12/26+0.01 -> 42.79461538 | C11: 92.7 | D11: =E11*12/26 -> 401.3894562 | E11: =+L11-C11 -> 869.677155 | F11: =E11/L11 -> 0.9036760177 | G11: =H11*12/26 -> 130.7261538 | H11: 283.24 | I11: =J11*12/26 -> 313.4479177 | J11: =L11-H11 -> 679.137155 | K11: =J11/L11 -> 0.7056871118 | L11: =[1]Harlingen!N12 -> 962.377155 | M11: =L11*1.02 -> 981.6246981 | R11: =IF(ROUND($C11,2)+ROUND($E11,2)=ROUND($L11,2),"-","ROUNDING ERROR!") -> - | S11: - | T11: 006.3 | U11: EPOFTCH | V11: EPO FT E+CHILD(S) | X11: 006.15 | Y11: EPOPTCH | Z11: EPO PT E+CHILD(S)
A12: Employee + Family | B12: =C12*12/26 -> 106.9661538 | C12: 231.76 | D12: =E12*12/26 -> 633.3289985 | E12: =+L12-C12 -> 1372.21283 | F12: =E12/L12 -> 0.8555087744 | G12: =H12*12/26 -> 261.4661538 | H12: 566.51 | I12: =J12*12/26 -> 478.8289985 | J12: =L12-H12 -> 1037.46283 | K12: =J12/L12 -> 0.6468082318 | L12: =[1]Harlingen!N13 -> 1603.97283 | M12: =L12*1.02 -> 1636.052287 | R12: =IF(ROUND($C12,2)+ROUND($E12,2)=ROUND($L12,2),"-","ROUNDING ERROR!") -> - | S12: - | T12: 006.4 | U12: EPOFTFM | V12: EPO FT E+FAMILY | X12: 006.16 | Y12: EPOPTFM | Z12: EPO PT E+FAMILY
A14: EPO w/Smoker Surcharge | B14: EMPLOYEE | D14: PRIME | G14: EMPLOYEE | I14: PRIME
B15: per pay period (26) | C15: =E15 -> per month | D15: per pay period (26) | E15: per month | G15: per pay period (26) | H15: =J15 -> per month | I15: per pay period (26) | J15: per month | L15: per month | M15: per month
A16: Employee Only | B16: =C16*12/26 -> 13.84615385 | C16: =+C9+30 -> 30 | D16: =E16*12/26 -> 232.9105085 | E16: =+L16-C16 -> 504.639435 | F16: =E16/L16 -> 0.9438874164 | G16: =H16*12/26 -> 92.28 | H16: =+H9+30 -> 199.94 | I16: =J16*12/26 -> 154.4766623 | J16: =L16-H16 -> 334.699435 | K16: =J16/L16 -> 0.6260283344 | L16: =+L9 -> 534.639435 | M16: =L16*1.02 -> 545.3322237 | R16: =IF(ROUND($C16,2)+ROUND($E16,2)=ROUND($L16,2),"-","ROUNDING ERROR!") -> - | S16: =IF(ROUND($H16,2)+ROUND($J16,2)=ROUND($L16,2),"-","ROUNDING ERROR!") -> - | T16: 006.5 | U16: EPOSFTEE | V16: EPOS FT EMP | X16: 006.17 | Y16: EPOSPTEE | Z16: EPOS PT EMP
A17: Employee + Spouse | B17: =C17*12/26 -> 66.13846154 | C17: =+C10+30 -> 143.3 | D17: =E17*12/26 -> 427.3899623 | E17: =+L17-C17 -> 926.011585 | F17: =E17/L17 -> 0.8659885463 | G17: =H17*12/26 -> 170.7276923 | H17: =+H10+30 -> 369.91 | I17: =J17*12/26 -> 322.8007315 | J17: =L17-H17 -> 699.401585 | K17: =J17/L17 -> 0.6540671539 | L17: =+L10 -> 1069.311585 | M17: =L17*1.02 -> 1090.697817 | R17: =IF(ROUND($C17,2)+ROUND($E17,2)=ROUND($L17,2),"-","ROUNDING ERROR!") -> - | S17: =IF(ROUND($H17,2)+ROUND($J17,2)=ROUND($L17,2),"-","ROUNDING ERROR!") -> - | T17: 006.6 | U17: EPOSFTSP | V17: EPOS FT E+SPOUSE | X17: 006.18 | Y17: EPOSPTSP | Z17: EPOS PT E+SPOUSE
A18: Employee + Child(ren) | B18: =C18*12/26 -> 56.63076923 | C18: =+C11+30 -> 122.7 | D18: =E18*12/26 -> 387.5433023 | E18: =+L18-C18 -> 839.677155 | F18: =E18/L18 -> 0.872503208 | G18: =H18*12/26 -> 144.5723077 | H18: =+H11+30 -> 313.24 | I18: =J18*12/26 -> 299.6017638 | J18: =L18-H18 -> 649.137155 | K18: =J18/L18 -> 0.674514302 | L18: =+L11 -> 962.377155 | M18: =L18*1.02 -> 981.6246981 | R18: =IF(ROUND($C18,2)+ROUND($E18,2)=ROUND($L18,2),"-","ROUNDING ERROR!") -> - | S18: - | T18: 006.7 | U18: EPOSFTCH | V18: EPOS FT E+CHILD(S) | X18: 006.19 | Y18: EPOSPTCH | Z18: EPOS PT E+CHILD(S)
A19: Employee + Family | B19: =C19*12/26 -> 120.8123077 | C19: =+C12+30 -> 261.76 | D19: =E19*12/26 -> 619.4828446 | E19: =+L19-C19 -> 1342.21283 | F19: =E19/L19 -> 0.8368052157 | G19: =H19*12/26 -> 275.3123077 | H19: =+H12+30 -> 596.51 | I19: =J19*12/26 -> 464.9828446 | J19: =L19-H19 -> 1007.46283 | K19: =J19/L19 -> 0.6281046731 | L19: =+L12 -> 1603.97283 | M19: =L19*1.02 -> 1636.052287 | R19: =IF(ROUND($C19,2)+ROUND($E19,2)=ROUND($L19,2),"-","ROUNDING ERROR!") -> - | S19: - | T19: 006.8 | U19: EPOSFTFM | V19: EPOS FT E+FAMILY | X19: 006.20 | Y19: EPOSPTFM | Z19: EPOS PT E+FAMILY
A21: VALUE PLAN | B21: EMPLOYEE | D21: PRIME | G21: EMPLOYEE | I21: PRIME
B22: per pay period (26) | C22: =E22 -> per month | D22: per pay period (26) | E22: per month | G22: per pay period (26) | H22: =J22 -> per month | I22: per pay period (26) | J22: per month | L22: per month | M22: per month
A23: Employee Only | B23: =C23*12/26 -> 42.64153846 | C23: ='[1]Prime Legacy'!C28 -> 92.39 | D23: =E23*12/26 -> 148.6397352 | E23: =+L23-C23 -> 322.0527595 | F23: =E23/L23 -> 0.7770741607 | G23: =H23*12/26 -> 42.64153846 | H23: =+C23 -> 92.39 | I23: =J23*12/26 -> 148.6397352 | J23: =L23-H23 -> 322.0527595 | K23: =J23/L23 -> 0.7770741607 | L23: =+'[1]Prime Legacy'!N28 -> 414.4427595 | M23: =L23*1.02 -> 422.7316147 | R23: =IF(ROUND($C23,2)+ROUND($E23,2)=ROUND($L23,2),"-","ROUNDING ERROR!") -> - | S23: =IF(ROUND($H23,2)+ROUND($J23,2)=ROUND($L23,2),"-","ROUNDING ERROR!") -> - | T23: 006.9 | U23: VPFPPDEE | V23: VALUE PLAN EMP ONLY
A24: Employee + Spouse | B24: =C24*12/26 -> 91.2 | C24: ='[1]Prime Legacy'!C29 -> 197.6 | D24: =E24*12/26 -> 291.3680532 | E24: =+L24-C24 -> 631.2974485 | F24: =E24/L24 -> 0.7616110408 | G24: =H24*12/26 -> 91.2 | H24: =+C24 -> 197.6 | I24: =J24*12/26 -> 291.3680532 | J24: =L24-H24 -> 631.2974485 | K24: =J24/L24 -> 0.7616110408 | L24: =+'[1]Prime Legacy'!N29 -> 828.8974485 | M24: =L24*1.02 -> 845.4753975 | R24: =IF(ROUND($C24,2)+ROUND($E24,2)=ROUND($L24,2),"-","ROUNDING ERROR!") -> - | S24: =IF(ROUND($H24,2)+ROUND($J24,2)=ROUND($L24,2),"-","ROUNDING ERROR!") -> - | T24: 006.10 | U24: VPFPPDSP | V24: VALUE PLAN EMP&SPOUSE
A25: Employee + Child(ren) | B25: =C25*12/26 -> 76.15384615 | C25: ='[1]Prime Legacy'!C30 -> 165 | D25: =E25*12/26 -> 268.1535475 | E25: =+L25-C25 -> 580.999353 | F25: =E25/L25 -> 0.7788201835 | G25: =H25*12/26 -> 76.15384615 | H25: =+C25 -> 165 | I25: =J25*12/26 -> 268.1535475 | J25: =L25-H25 -> 580.999353 | K25: =J25/L25 -> 0.7788201835 | L25: =+'[1]Prime Legacy'!N30 -> 745.999353 | M25: =L25*1.02 -> 760.9193401 | R25: =IF(ROUND($C25,2)+ROUND($E25,2)=ROUND($L25,2),"-","ROUNDING ERROR!") -> - | S25: - | T25: 006.11 | U25: VPFPPDCH | V25: VALUE PLAN EMP&CHILD
A26: Employee + Family | B26: =C26*12/26 -> 151.9846154 | C26: ='[1]Prime Legacy'!C31 -> 329.3 | D26: =E26*12/26 -> 421.8702173 | E26: =+L26-C26 -> 914.0521375 | F26: =E26/L26 -> 0.7351514587 | G26: =H26*12/26 -> 151.9846154 | H26: =+C26 -> 329.3 | I26: =J26*12/26 -> 421.8702173 | J26: =L26-H26 -> 914.0521375 | K26: =J26/L26 -> 0.7351514587 | L26: =+'[1]Prime Legacy'!N31 -> 1243.352138 | M26: =L26*1.02 -> 1268.21918 | R26: =IF(ROUND($C26,2)+ROUND($E26,2)=ROUND($L26,2),"-","ROUNDING ERROR!") -> - | S26: - | T26: 006.12 | U26: VPFPPDFM | V26: VALUE PLAN EMP&FAMILY
A29: DELTA DENTAL PPO HIGH | B29: EMPLOYEE | D29: PRIME | G29: EMPLOYEE | I29: PRIME | R29: Rounding Error Check
B30: per pay period (26) | C30: =E30 -> per month | D30: per pay period (26) | E30: per month | G30: per pay period (26) | H30: =J30 -> per month | I30: per pay period (26) | J30: per month | L30: per month | M30: per month | R30: FT | S30: PT
A31: Employee Only | B31: =+[1]KNAPP!B32 -> 2.870769231 | C31: =B31*26/12 -> 6.22 | D31: =E31*12/26 -> 9.175384615 | E31: =+L31-C31 -> 19.88 | F31: =E31/L31 -> 0.7616858238 | G31: =+[1]KNAPP!I32 -> 2.870769231 | H31: =G31*26/12 -> 6.22 | I31: =J31*12/26 -> 9.175384615 | J31: =L31-H31 -> 19.88 | K31: =J31/L31 -> 0.7616858238 | L31: 26.1 | M31: =L31*1.02 -> 26.622 | Q31: =+(B31+D31)*26/12 -> 26.1 | R31: =IF(ROUND($C31,2)+ROUND($E31,2)=ROUND($L31,2),"-","ROUNDING ERROR!") -> - | S31: =IF(ROUND($H31,2)+ROUND($J31,2)=ROUND($L31,2),"-","ROUNDING ERROR!") -> - | T31: 020.1 | U31: DPPOHEE | V31: DNTL PPO HIGH EMP
A32: Employee + Spouse | B32: =+[1]KNAPP!B33 -> 12.31846154 | C32: =B32*26/12 -> 26.69 | D32: =E32*12/26 -> 13.55076923 | E32: =+L32-C32 -> 29.36 | F32: =E32/L32 -> 0.5238180196 | G32: =+[1]KNAPP!I33 -> 12.31846154 | H32: =G32*26/12 -> 26.69 | I32: =J32*12/26 -> 13.55076923 | J32: =L32-H32 -> 29.36 | K32: =J32/L32 -> 0.5238180196 | L32: 56.05 | M32: =L32*1.02 -> 57.171 | Q32: =+(B32+D32)*26/12 -> 56.05 | R32: =IF(ROUND($C32,2)+ROUND($E32,2)=ROUND($L32,2),"-","ROUNDING ERROR!") -> - | S32: =IF(ROUND($H32,2)+ROUND($J32,2)=ROUND($L32,2),"-","ROUNDING ERROR!") -> - | T32: 020.2 | U32: DPPOHES | V32: DNTL PPO HIGH E+SPOUSE
A33: Employee + Child(ren) | B33: =+[1]KNAPP!B34 -> 14.91692308 | C33: =B33*26/12 -> 32.32 | D33: =E33*12/26 -> 16.41230769 | E33: =+L33-C33 -> 35.56 | F33: =E33/L33 -> 0.5238656453 | G33: =+[1]KNAPP!I34 -> 14.91692308 | H33: =G33*26/12 -> 32.32 | I33: =J33*12/26 -> 16.41230769 | J33: =L33-H33 -> 35.56 | K33: =J33/L33 -> 0.5238656453 | L33: 67.88 | M33: =L33*1.02 -> 69.2376 | Q33: =+(B33+D33)*26/12 -> 67.88 | R33: =IF(ROUND($C33,2)+ROUND($E33,2)=ROUND($L33,2),"-","ROUNDING ERROR!") -> - | S33: - | T33: 020.3 | U33: DPPOHEC | V33: DNTL PPO HIGH E+CHILD(S)
A34: Employee + Family | B34: =+[1]KNAPP!B35 -> 16.75384615 | C34: =B34*26/12 -> 36.3 | D34: =E34*12/26 -> 18.43384615 | E34: =+L34-C34 -> 39.94 | F34: =E34/L34 -> 0.5238719832 | G34: =+[1]KNAPP!I35 -> 16.75384615 | H34: =G34*26/12 -> 36.3 | I34: =J34*12/26 -> 18.43384615 | J34: =L34-H34 -> 39.94 | K34: =J34/L34 -> 0.5238719832 | L34: 76.24 | M34: =L34*1.02 -> 77.7648 | Q34: =+(B34+D34)*26/12 -> 76.24 | R34: =IF(ROUND($C34,2)+ROUND($E34,2)=ROUND($L34,2),"-","ROUNDING ERROR!") -> - | S34: - | T34: 020.4 | U34: DPPOHEF | V34: DNTL PPO HIGH E+FAMILY
A36: DELTA DENTAL PPO LOW | B36: EMPLOYEE | D36: PRIME | G36: EMPLOYEE | I36: PRIME
B37: per pay period (26) | C37: =E37 -> per month | D37: per pay period (26) | E37: per month | G37: per pay period (26) | H37: =J37 -> per month | I37: per pay period (26) | J37: per month | L37: per month | M37: per month
A38: Employee Only | B38: =+[1]KNAPP!B39 -> 2.270769231 | C38: =B38*26/12 -> 4.92 | D38: =E38*12/26 -> 8.252307692 | E38: =+L38-C38 -> 17.88 | F38: =E38/L38 -> 0.7842105263 | G38: =+[1]KNAPP!I39 -> 2.270769231 | H38: =G38*26/12 -> 4.92 | I38: =J38*12/26 -> 8.252307692 | J38: =L38-H38 -> 17.88 | K38: =J38/L38 -> 0.7842105263 | L38: 22.8 | M38: =L38*1.02 -> 23.256 | Q38: =+(B38+D38)*26/12 -> 22.8 | R38: =IF(ROUND($C38,2)+ROUND($E38,2)=ROUND($L38,2),"-","ROUNDING ERROR!") -> - | S38: =IF(ROUND($H38,2)+ROUND($J38,2)=ROUND($L38,2),"-","ROUNDING ERROR!") -> - | T38: 020.5 | U38: DPPOLEE | V38: DNTL PPO LOW EMP
A39: Employee + Spouse | B39: =+[1]KNAPP!B40 -> 9.743076923 | C39: =B39*26/12 -> 21.11 | D39: =E39*12/26 -> 12.83076923 | E39: =+L39-C39 -> 27.8 | F39: =E39/L39 -> 0.5683909221 | G39: =+[1]KNAPP!I40 -> 9.743076923 | H39: =G39*26/12 -> 21.11 | I39: =J39*12/26 -> 12.83076923 | J39: =L39-H39 -> 27.8 | K39: =J39/L39 -> 0.5683909221 | L39: 48.91 | M39: =L39*1.02 -> 49.8882 | Q39: =+(B39+D39)*26/12 -> 48.91 | R39: =IF(ROUND($C39,2)+ROUND($E39,2)=ROUND($L39,2),"-","ROUNDING ERROR!") -> - | S39: =IF(ROUND($H39,2)+ROUND($J39,2)=ROUND($L39,2),"-","ROUNDING ERROR!") -> - | T39: 020.6 | U39: DPPOLES | V39: DNTL PPO LOW E+SPOUSE
A40: Employee + Child(ren) | B40: =+[1]KNAPP!B41 -> 11.96307692 | C40: =B40*26/12 -> 25.92 | D40: =E40*12/26 -> 15.75230769 | E40: =+L40-C40 -> 34.13 | F40: =E40/L40 -> 0.5683597002 | G40: =+[1]KNAPP!I41 -> 11.96307692 | H40: =G40*26/12 -> 25.92 | I40: =J40*12/26 -> 15.75230769 | J40: =L40-H40 -> 34.13 | K40: =J40/L40 -> 0.5683597002 | L40: 60.05 | M40: =L40*1.02 -> 61.251 | Q40: =+(B40+D40)*26/12 -> 60.05 | R40: =IF(ROUND($C40,2)+ROUND($E40,2)=ROUND($L40,2),"-","ROUNDING ERROR!") -> - | S40: - | T40: 020.7 | U40: DPPOLEC | V40: DNTL PPO LOW E+CHILD(S)
A41: Employee + Family | B41: =+[1]KNAPP!B42 -> 12.76153846 | C41: =B41*26/12 -> 27.65 | D41: =E41*12/26 -> 16.80461538 | E41: =+L41-C41 -> 36.41 | F41: =E41/L41 -> 0.5683733999 | G41: =+[1]KNAPP!I42 -> 12.76153846 | H41: =G41*26/12 -> 27.65 | I41: =J41*12/26 -> 16.80461538 | J41: =L41-H41 -> 36.41 | K41: =J41/L41 -> 0.5683733999 | L41: 64.06 | M41: =L41*1.02 -> 65.3412 | Q41: =+(B41+D41)*26/12 -> 64.06 | R41: =IF(ROUND($C41,2)+ROUND($E41,2)=ROUND($L41,2),"-","ROUNDING ERROR!") -> - | S41: - | T41: 020.8 | U41: DPPOLEF | V41: DNTL PPO LOW E+FAMILY
A44: VSP CHOICE PLAN B | B44: EMPLOYEE | D44: PRIME | G44: EMPLOYEE | I44: PRIME | R44: Rounding Error Check
B45: per pay period (26) | C45: per month | D45: per pay period (26) | E45: per month | G45: per pay period (26) | H45: per month | I45: per pay period (26) | J45: per month | L45: per month | M45: per month | R45: FT | S45: PT
A46: Employee Only | B46: =C46*12/26 -> 3.503076923 | C46: =L46 -> 7.59 | D46: =E46*12/26 -> 0 | E46: =L46-C46 -> 0 | F46: =E46/L46 -> 0 | G46: =H46*12/26 -> 3.503076923 | H46: =+L46 -> 7.59 | I46: =J46*12/26 -> 0 | J46: =L46-H46 -> 0 | K46: =J46/L46 -> 0 | L46: =+'[1]Prime Legacy'!N59 -> 7.59 | M46: =L46*1.02 -> 7.7418 | R46: =IF(ROUND($C46,2)+ROUND($E46,2)=ROUND($L46,2),"-","ROUNDING ERROR!") -> - | S46: =IF(ROUND($H46,2)+ROUND($J46,2)=ROUND($L46,2),"-","ROUNDING ERROR!") -> - | T46: 060.1 | U46: VSPBEE | V46: VSP B EMP
A47: Employee + Spouse | B47: =C47*12/26 -> 5.607692308 | C47: =L47 -> 12.15 | D47: =E47*12/26 -> 0 | E47: =L47-C47 -> 0 | F47: =E47/L47 -> 0 | G47: =H47*12/26 -> 5.607692308 | H47: =+L47 -> 12.15 | I47: =J47*12/26 -> 0 | J47: =L47-H47 -> 0 | K47: =J47/L47 -> 0 | L47: =+'[1]Prime Legacy'!N60 -> 12.15 | M47: =L47*1.02 -> 12.393 | R47: =IF(ROUND($C47,2)+ROUND($E47,2)=ROUND($L47,2),"-","ROUNDING ERROR!") -> - | S47: =IF(ROUND($H47,2)+ROUND($J47,2)=ROUND($L47,2),"-","ROUNDING ERROR!") -> - | T47: 060.2 | U47: VSPBES | V47: VSP B E+SPOUSE
A48: Employee + Child(ren) | B48: =C48*12/26 -> 5.732307692 | C48: =L48 -> 12.42 | D48: =E48*12/26 -> 0 | E48: =L48-C48 -> 0 | F48: =E48/L48 -> 0 | G48: =H48*12/26 -> 5.732307692 | H48: =+L48 -> 12.42 | I48: =J48*12/26 -> 0 | J48: =L48-H48 -> 0 | K48: =J48/L48 -> 0 | L48: =+'[1]Prime Legacy'!N61 -> 12.42 | M48: =L48*1.02 -> 12.6684 | R48: =IF(ROUND($C48,2)+ROUND($E48,2)=ROUND($L48,2),"-","ROUNDING ERROR!") -> - | S48: - | T48: 060.3 | U48: VSPBEC | V48: VSP B E+CHILD(S)
A49: Employee + Family | B49: =C49*12/26 -> 9.429230769 | C49: =L49 -> 20.43 | D49: =E49*12/26 -> 0 | E49: =L49-C49 -> 0 | F49: =E49/L49 -> 0 | G49: =H49*12/26 -> 9.429230769 | H49: =+L49 -> 20.43 | I49: =J49*12/26 -> 0 | J49: =L49-H49 -> 0 | K49: =J49/L49 -> 0 | L49: =+'[1]Prime Legacy'!N62 -> 20.43 | M49: =L49*1.02 -> 20.8386 | R49: =IF(ROUND($C49,2)+ROUND($E49,2)=ROUND($L49,2),"-","ROUNDING ERROR!") -> - | S49: - | T49: 060.4 | U49: VSPBEF | V49: VSP B E+FAMILY
A51: VSP CHOICE PLAN C | B51: EMPLOYEE | D51: PRIME | G51: EMPLOYEE | I51: PRIME
B52: per pay period (26) | C52: per month | D52: per pay period (26) | E52: per month | G52: per pay period (26) | H52: per month | I52: per pay period (26) | J52: per month | L52: per month | M52: per month
A53: Employee Only | B53: =C53*12/26 -> 4.121538462 | C53: =L53 -> 8.93 | D53: =E53*12/26 -> 0 | E53: =L53-C53 -> 0 | F53: =E53/L53 -> 0 | G53: =H53*12/26 -> 4.121538462 | H53: =+L53 -> 8.93 | I53: =J53*12/26 -> 0 | J53: =L53-H53 -> 0 | K53: =J53/L53 -> 0 | L53: =+'[1]Prime Legacy'!N66 -> 8.93 | M53: =L53*1.02 -> 9.1086 | R53: =IF(ROUND($C53,2)+ROUND($E53,2)=ROUND($L53,2),"-","ROUNDING ERROR!") -> - | S53: =IF(ROUND($H53,2)+ROUND($J53,2)=ROUND($L53,2),"-","ROUNDING ERROR!") -> - | T53: 060.5 | U53: VSPCEE | V53: VSP C EMP
A54: Employee + Spouse | B54: =C54*12/26 -> 6.604615385 | C54: =L54 -> 14.31 | D54: =E54*12/26 -> 0 | E54: =L54-C54 -> 0 | F54: =E54/L54 -> 0 | G54: =H54*12/26 -> 6.604615385 | H54: =+L54 -> 14.31 | I54: =J54*12/26 -> 0 | J54: =L54-H54 -> 0 | K54: =J54/L54 -> 0 | L54: =+'[1]Prime Legacy'!N67 -> 14.31 | M54: =L54*1.02 -> 14.5962 | R54: =IF(ROUND($C54,2)+ROUND($E54,2)=ROUND($L54,2),"-","ROUNDING ERROR!") -> - | S54: =IF(ROUND($H54,2)+ROUND($J54,2)=ROUND($L54,2),"-","ROUNDING ERROR!") -> - | T54: 060.6 | U54: VSPCES | V54: VSP C E+SPOUSE
A55: Employee + Child(ren) | B55: =C55*12/26 -> 6.747692308 | C55: =L55 -> 14.62 | D55: =E55*12/26 -> 0 | E55: =L55-C55 -> 0 | F55: =E55/L55 -> 0 | G55: =H55*12/26 -> 6.747692308 | H55: =+L55 -> 14.62 | I55: =J55*12/26 -> 0 | J55: =L55-H55 -> 0 | K55: =J55/L55 -> 0 | L55: =+'[1]Prime Legacy'!N68 -> 14.62 | M55: =L55*1.02 -> 14.9124 | R55: =IF(ROUND($C55,2)+ROUND($E55,2)=ROUND($L55,2),"-","ROUNDING ERROR!") -> - | S55: - | T55: 060.7 | U55: VSPCEC | V55: VSP C E+CHILD(S)
A56: Employee + Family | B56: =C56*12/26 -> 10.88307692 | C56: =L56 -> 23.58 | D56: =E56*12/26 -> 0 | E56: =L56-C56 -> 0 | F56: =E56/L56 -> 0 | G56: =H56*12/26 -> 10.88307692 | H56: =+L56 -> 23.58 | I56: =J56*12/26 -> 0 | J56: =L56-H56 -> 0 | K56: =J56/L56 -> 0 | L56: =+'[1]Prime Legacy'!N69 -> 23.58 | M56: =L56*1.02 -> 24.0516 | R56: =IF(ROUND($C56,2)+ROUND($E56,2)=ROUND($L56,2),"-","ROUNDING ERROR!") -> - | S56: - | T56: 060.8 | U56: VSPCEF | V56: VSP C E+FAMILY
A59: EAP | B59: EMPLOYEE | D59: PRIME | G59: EMPLOYEE | I59: PRIME
A60: (Bundled w/Basic Life through SunLife) | B60: per pay period (26) | C60: per month | D60: per pay period (26) | E60: per month | G60: per pay period (26) | H60: per month | I60: per pay period (26) | J60: per month | L60: per month | M60: per month
A61: Employee Only | B61: 0 | C61: 0 | D61: 0 | E61: 0 | F61: =E61/L61 -> 0 | G61: =B61 -> 0 | H61: =C61 -> 0 | I61: =J61*12/26 -> 0.4846153846 | J61: 1.05 | K61: =J61/L61 -> 1 | L61: 1.05 | M61: N/A

Sheet C Suite Codes
C1: Mission Regional Medical Center
C2: C-SUITE
B3: C-Suite | C3: PLAN NAME
A4: C-Suite Ded# | B4: Ded Codes
C6: EPO Plan
A8: 006.21 | B8: EPOCEE | C8: Employee Only
A9: 006.22 | B9: EPOCE+SP | C9: Employee + Spouse
A10: 006.23 | B10: EPOCE+CH | C10: Employee + Child(ren)
A11: 006.24 | B11: EPOCE+FM | C11: Employee + Family
C13: EPO Plan w/Smoker Surcharge | D13: do not use
A15: 006.25 | B15: EPOCSEE | C15: Employee Only
A16: 006.26 | B16: EPOCSE+SP | C16: Employee + Spouse
A17: 006.27 | B17: EPOCSE+CH | C17: Employee + Child(ren)
A18: 006.28 | B18: EPOCSE+FM | C18: Employee + Family
C20: VALUE PLAN
A22: 006.29 | B22: EPOCVEE | C22: Employee Only
A23: 006.30 | B23: EPOCVE+SP | C23: Employee + Spouse
A24: 006.31 | B24: EPOCVE+CH | C24: Employee + Child(ren)
A25: 006.32 | B25: EPOCVE+FM | C25: Employee + Family
C28: DELTA DENTAL PPO HIGH PLAN
C29: Moved to Delta effective 1/1/2017
A30: 020.9 | B30: DPPOHCEE | C30: Employee Only
A31: 020.10 | B31: DPPOHCE+SP | C31: Employee + Spouse
A32: 020.11 | B32: DPPOHCE+CH | C32: Employee + Child(ren)
A33: 020.12 | B33: DPPOHCE+FM | C33: Employee + Family
C35: DELTA DENTAL PPO LOW PLAN
C36: Moved to Delta effective 1/1/2017
A37: 020.13 | B37: DPPOLCEE | C37: Employee Only
A38: 020.14 | B38: DPPOLCE+SP | C38: Employee + Spouse
A39: 020.15 | B39: DPPOLCE+CH | C39: Employee + Child(ren)
A40: 020.16 | B40: DPPOLCE+FM | C40: Employee + Family
C43: VSP VISION CHOICE PLAN B
C44: New Plan Effective 1/1/2016
A45: 020.17 | B45: VSPBCEE | C45: Employee Only
A46: 020.18 | B46: VSPBCE+SP | C46: Employee + Spouse
A47: 020.19 | B47: VSPBCE+CH | C47: Employee + Child(ren)
A48: 020.20 | B48: VSPBCE+FM | C48: Employee + Family
C50: VSP VISION CHOICE PLAN C
C51: New Plan Effective 1/1/2016
A52: 020.21 | B52: VSPCCEE | C52: Employee Only
A53: 020.22 | B53: VSPCCE+SP | C53: Employee + Spouse
A54: 020.23 | B54: VSPCCE+CH | C54: Employee + Child(ren)
A55: 020.24 | B55: VSPCCE+FM | C55: Employee + Family
C58: EAP (Employee Assistance Program)
C59: (Bundled with Basic Life through Sun Life)
C60: Employee Only
